bitfinex/quotes_ETHUSD_20260304
["timestamp","ask_amount","ask_price","bid_price","bid_amount"]
[1772629568042,5.79065294,2058.2,2057.2,6.60036145]
[1772629568241,5.79065294,2058.0,2057.1,10.24624041]
[1772629569347,5.79065294,2058.0,2057.2,5.38516511]
[1772629570285,5.79065294,2058.0,2057.1,4.8610753]
[1772629570448,12.4804266,2058.2,2057.2,5.38516511]
[1772629570648,1.21475124,2058.1,2057.2,5.38516511]
[1772629571177,7.00540418,2058.1,2057.2,9.19516511]
[1772629572074,1.21475124,2058.1,2057.2,5.38516511]
[1772629572587,8.83632405,2058.2,2057.5,1.21506682]
[1772629572951,8.83632405,2058.2,2057.5,6.60023193]
[1772629573146,3.04567111,2058.2,2057.5,6.60023193]
[1772629573350,1.21453556,2058.4,2057.5,6.60023193]
[1772629575772,7.0051885,2058.4,2057.5,6.60023193]
[1772629576390,5.79065294,2058.4,2057.5,6.60023193]
[1772629576974,5.79065294,2058.6,2057.5,6.60023193]
[1772629577343,7.00497882,2058.8,2057.6,5.38516511]
[1772629577573,2.97578317,2059.0,2057.7,5.5346501]
[1772629577574,1.55965996,2059.0,2057.7,5.5346501]
[1772629577874,0.34545787,2059.0,2057.9,5.38516511]
[1772629578084,0.34545787,2059.0,2057.8,1.873]
[1772629578085,4.85615069,2059.3,2057.8,1.873]
[1772629578283,7.5607814,2060.0,2058.5,5.29449345]
[1772629578284,5.79065294,2059.7,2058.5,5.29449345]
[1772629578571,2.70632318,2060.0,2058.7,5.29449345]
[1772629578572,6.64011181,2059.9,2058.7,5.29449345]
[1772629578756,6.64011181,2059.9,2058.7,7.16749345]
[1772629578951,5.42642668,2059.7,2058.3,5.29449345]
[1772629579382,1.21382792,2059.6,2058.5,5.29449345]
[1772629579568,1.21382792,2059.6,2058.7,5.29449345]
[1772629579761,1.21365114,2059.9,2058.9,5.29449345]
[1772629580075,1.21365114,2059.9,2058.8,1.874]
[1772629580076,1.56179595,2060.5,2059.4,0.14948499]
[1772629580263,1.56179595,2060.5,2059.3,5.29449345]
[1772629580264,5.42642668,2060.4,2059.3,5.29449345]
[1772629580472,1.56179595,2060.5,2059.4,5.29449345]
[1772629580780,5.42642668,2060.4,2059.2,1.874]
[1772629580952,5.42642668,2060.3,2059.1,5.29449345]
[1772629581152,5.42642668,2060.3,2058.9,7.16849345]
[1772629581366,5.42642668,2060.1,2058.9,6.50869407]
[1772629581859,5.42642668,2060.1,2058.7,1.21435857]
[1772629582296,5.42642668,2060.1,2058.6,9.70072661]
[1772629583252,5.53099122,2059.9,2058.8,1.21429959]
[1772629583484,1.21359223,2060.0,2058.8,6.70604341]
[1772629584675,1.21359223,2060.0,2059.0,5.49174382]
[1772629584877,6.74458345,2060.0,2059.0,5.49174382]
[1772629585090,1.829,2060.4,2059.2,5.49174382]
[1772629585255,1.21340333,2060.4,2059.5,1.21388686]
[1772629585454,1.21340333,2060.4,2059.5,5.49174382]
[1772629587087,6.74439455,2060.4,2059.4,1.21390598]
[1772629587411,6.74439455,2060.4,2059.4,6.7056498]
[1772629587561,6.74439455,2060.4,2059.2,1.21406371]
[1772629587887,6.74439455,2060.4,2059.2,6.70580753]
[1772629588253,1.21341552,2060.3,2059.2,6.70580753]
[1772629589465,6.74423008,2060.6,2059.2,6.70580753]
[1772629590788,0.002,2060.1,2059.2,6.70580753]
[1772629591365,0.002,2060.3,2059.4,5.49174382]
[1772629591565,0.002,2060.3,2059.6,5.49174382]
[1772629591886,0.002,2060.3,2059.7,5.49174382]
[1772629592290,4.85258923,2060.8,2059.7,5.49174382]
[1772629592466,4.85224562,2061.0,2059.9,5.49174382]
[1772629592467,1.21306225,2060.9,2059.9,5.49174382]
[1772629592669,6.74405347,2060.9,2059.9,5.49174382]
[1772629593871,6.74405347,2060.9,2060.0,1.21359223]
[1772629594072,6.74405347,2060.9,2059.6,5.49174382]
[1772629594279,6.74405347,2060.9,2059.3,6.70574857]
[1772629594484,5.53099122,2060.6,2059.3,6.70574857]
[1772629594770,7.35599122,2060.5,2059.3,6.70574857]
[1772629594989,5.53099122,2060.4,2059.3,6.70574857]
[1772629595769,1.825,2060.5,2059.3,6.70574857]
[1772629595968,1.21335662,2060.4,2059.3,6.70574857]
[1772629596579,1.21335662,2060.4,2059.5,5.49174382]
[1772629597096,4.85306983,2060.6,2059.5,5.49174382]
[1772629597270,1.21317998,2060.7,2059.5,5.49174382]
[1772629597470,1.21313131,2060.8,2059.5,5.49174382]
[1772629597975,1.21300339,2061.0,2059.7,6.70551281]
[1772629598176,5.01422507,2061.7,2059.9,5.49174382]
[1772629598412,0.70539981,2062.6,2061.2,0.14948499]
[1772629598714,5.53099122,2062.5,2061.3,0.44101739]
[1772629598868,5.53099122,2062.5,2061.2,4.77728726]
[1772629598869,5.53099122,2062.5,2061.4,0.44101739]
[1772629599069,5.53099122,2062.5,2061.2,4.77728726]
[1772629599291,5.20034622,2062.6,2061.2,4.77728726]
[1772629599292,5.53099122,2062.3,2061.2,4.77728726]
[1772629599496,5.53099122,2062.2,2061.2,4.77728726]
[1772629599876,2.52508662,2061.9,2061.2,4.77728726]
[1772629600087,6.74358277,2061.7,2061.2,4.77728726]
[1772629600281,4.84980964,2062.0,2061.2,4.77728726]
[1772629600674,4.84980964,2062.0,2061.2,5.990169]
[1772629601005,4.84980964,2062.0,2061.4,0.5]
[1772629601180,1.21239039,2062.1,2061.4,0.5]
[1772629601685,1.21233661,2062.2,2061.4,0.5]
[1772629602072,4.84902135,2062.3,2061.5,1.21270919]
[1772629602296,4.84902135,2062.3,2061.4,1.71272769]
[1772629602603,4.84849877,2062.5,2061.4,1.71272769]
[1772629602604,1.21212121,2062.5,2061.4,7.20447151]
[1772629603321,1.91746973,2062.6,2061.7,5.49174382]
[1772629603796,0.70539981,2062.6,2061.7,5.49174382]
[1772629603997,0.70539981,2062.6,2061.8,1.21253273]
[1772629604199,1.91748301,2062.6,2061.8,1.21253273]
[1772629604606,5.53099122,2062.8,2061.8,1.21253273]
[1772629604807,3.73662215,2063.5,2062.0,0.14948499]
[1772629604974,3.73662949,2063.5,2061.8,1.21253273]
[1772629605298,5.84411235,2063.5,2062.0,5.49174382]
[1772629605699,6.35318923,2064.2,2061.9,2.51696907]
[1772629605700,4.63257351,2063.9,2062.2,5.49174382]
[1772629605900,5.84367025,2064.3,2062.4,5.49174382]
[1772629606103,4.80698365,2064.2,2062.6,5.49174382]
[1772629607603,1.21109674,2064.3,2062.6,5.49174382]
[1772629607782,1.21094696,2064.5,2063.0,5.49174382]
[1772629608103,5.95670681,2064.5,2062.9,5.49174382]
[1772629609888,5.95670681,2064.5,2062.6,4.8482441]
[1772629609889,4.85598368,2064.4,2062.6,4.8482441]
[1772629610087,4.78490557,2064.2,2062.7,5.78092154]
[1772629612004,1.21118162,2064.1,2062.8,6.99286646]
[1772629612375,1.21114268,2064.2,2062.8,6.99286646]
[1772629612596,1.21114268,2064.2,2063.0,5.78092154]
[1772629612797,1.21110928,2064.3,2063.0,5.78092154]
[1772629613608,4.76835009,2064.2,2063.0,5.78092154]
[1772629613986,5.97408443,2064.1,2063.1,1.21176869]
[1772629614213,4.76290281,2064.0,2063.1,1.21176869]
[1772629614510,4.76290281,2064.0,2062.8,1.21194492]
[1772629615030,4.76290281,2064.0,2062.8,6.99286646]
[1772629615177,1.21118162,2064.1,2062.8,6.99286646]
[1772629615375,4.75755258,2064.0,2062.8,6.99286646]
[1772629615687,1.21118162,2064.1,2062.8,6.99286646]
[1772629616208,1.21106428,2064.3,2062.8,6.99286646]
[1772629616421,1.21106428,2064.3,2063.0,5.78092154]
[1772629617483,1.21106428,2064.3,2063.2,5.78092154]
[1772629617679,4.84361953,2064.6,2063.2,5.78092154]
[1772629617883,9.59604676,2064.6,2063.3,5.78092154]
[1772629618120,4.746994,2064.5,2063.3,5.78092154]
[1772629618323,5.95799961,2064.4,2063.4,1.21159251]
[1772629618504,1.21100561,2064.4,2063.3,5.78092154]
[1772629618685,1.21100561,2064.4,2063.0,5.78092154]
[1772629618883,1.21100561,2064.4,2063.2,5.78092154]
[1772629619090,4.746994,2064.7,2063.2,5.78092154]
[1772629619414,1.21091424,2064.6,2063.4,5.78092154]
[1772629620192,1.21091424,2064.6,2063.5,5.78092154]
[1772629620391,9.57961684,2064.7,2063.6,1.21147509]
[1772629620592,4.73619711,2064.6,2063.5,6.99240991]
[1772629621015,4.84341973,2064.7,2063.5,6.99240991]
[1772629621588,4.84312792,2064.8,2063.5,6.99240991]
[1772629621794,4.73079793,2064.7,2063.5,6.99240991]
[1772629622194,0.003,2064.7,2063.7,5.78092154]
[1772629622497,0.003,2064.7,2063.9,5.78092154]
[1772629622694,1.21047789,2065.3,2063.9,5.78092154]
[1772629623014,1.21047789,2065.3,2064.1,5.78092154]
[1772629623404,4.72005706,2065.6,2064.2,5.78092154]
[1772629623608,4.72005706,2065.6,2063.9,5.78092154]
[1772629623990,4.72005706,2065.4,2063.7,6.99229464]
[1772629624504,4.7148335,2065.2,2063.7,6.99229464]
[1772629624705,4.7148335,2065.0,2063.7,6.99229464]
[1772629624919,4.7148335,2065.0,2063.7,6.99233339]
[1772629626643,4.704235,2064.8,2063.7,6.99233716]
[1772629626841,4.704235,2064.8,2063.4,6.99247788]
[1772629627040,4.704235,2064.8,2063.5,6.2184133]
[1772629627243,4.704235,2064.8,2063.6,6.2184133]
[1772629627553,4.704235,2064.8,2063.6,5.78092154]
[1772629627740,4.704235,2064.8,2063.4,1.21155634]
[1772629627942,4.704235,2064.8,2063.5,0.43847018]
[1772629628145,4.704235,2064.8,2063.6,0.43862284]
[1772629628347,4.704235,2064.8,2063.2,1.21167637]
[1772629628555,4.704235,2064.8,2063.4,6.99251405]
[1772629628556,4.69395916,2064.6,2063.4,6.99251405]
[1772629628755,4.69395916,2064.6,2063.5,0.43943994]
[1772629630066,4.69395916,2064.6,2063.6,0.43943994]
[1772629630265,4.69395916,2064.6,2063.7,0.43943994]
[1772629630572,4.69395916,2064.6,2063.8,0.43943994]
[1772629630772,4.68351749,2064.4,2063.3,1.21165123]
[1772629630998,1.21094696,2064.5,2063.2,10.62773163]
[1772629630999,4.68351749,2064.2,2063.4,0.44073979]
[1772629631288,4.67834988,2064.9,2063.7,5.78192154]
[1772629631447,4.67834988,2064.9,2063.8,6.22166133]
[1772629631648,1.822,2065.2,2064.0,5.78092154]
[1772629631850,1.21063446,2065.1,2064.2,5.78092154]
[1772629632055,1.21063446,2065.1,2064.3,0.44073979]
[1772629632254,1.21063446,2065.1,2064.4,0.44073979]
[1772629632560,1.21063446,2065.1,2064.5,0.44073979]
[1772629632893,4.67320398,2065.6,2064.6,6.22166133]
[1772629633058,4.67320398,2065.6,2064.3,9.63551906]
[1772629633389,4.67320398,2065.6,2064.1,1.21118162]
[1772629633691,4.67320398,2065.6,2064.2,2.82831101]
[1772629633893,4.67320398,2065.6,2064.1,6.99210316]
[1772629634201,4.67320398,2065.6,2064.3,5.78092154]
[1772629634401,6.49870211,2065.5,2064.3,5.78092154]
[1772629634714,4.67570211,2065.4,2064.3,5.78092154]
[1772629634861,4.67570211,2065.2,2064.0,6.99211855]
[1772629635065,4.67570211,2065.2,2064.1,2.83258477]
[1772629635362,4.67570211,2065.2,2064.2,2.83258477]
[1772629635585,4.67570211,2065.2,2064.0,6.99214887]
[1772629636085,6.49870211,2065.2,2064.0,6.99214887]
[1772629636658,4.66003133,2065.1,2064.0,6.99214887]
[1772629636887,1.21065375,2065.0,2064.0,6.99214887]
[1772629637092,5.86570458,2065.0,2064.0,5.78092154]
[1772629637393,4.65505083,2064.9,2063.8,3.45945294]
[1772629637603,4.65505083,2064.9,2063.8,1.21132804]
[1772629638474,4.65505083,2064.9,2063.8,6.75995034]
[1772629638906,4.65505083,2064.9,2063.9,5.5486223]
[1772629638907,1.21077101,2064.8,2063.9,5.5486223]
[1772629639205,5.85506052,2064.8,2063.8,1.21132804]
[1772629639384,4.64428951,2064.8,2063.8,1.21132804]
[1772629639589,5.85506052,2064.8,2063.8,1.21132804]
[1772629640303,4.63936601,2064.7,2063.7,0.001]
[1772629640877,4.63936601,2064.5,2063.7,0.001]
[1772629641109,4.64890456,2064.4,2063.7,0.001]
[1772629642214,1.824,2064.5,2063.7,0.001]
[1772629642898,1.21100561,2064.4,2063.7,0.001]
[1772629643115,5.85416262,2064.4,2063.7,0.001]
[1772629643410,4.63833131,2064.3,2063.7,0.001]
[1772629643801,1.21100561,2064.4,2063.7,5.63710216]
[1772629644395,4.63344117,2064.3,2063.7,0.001]
[1772629644711,5.1018442,2064.1,2063.0,6.84790472]
[1772629644926,1.21124031,2064.0,2063.6,0.001]
[1772629645137,3.03424031,2064.0,2063.6,0.001]
[1772629645339,3.03424031,2064.0,2062.8,2.27293717]
[1772629645340,5.09732564,2063.9,2062.8,2.27293717]
[1772629645528,5.09732564,2063.9,2063.4,0.001]
[1772629645729,1.823,2063.8,2063.4,0.001]
[1772629645931,1.81653978,2063.8,2062.9,5.63610216]
[1772629646135,1.81653978,2063.8,2063.0,0.4437294]
[1772629646333,5.10091768,2063.7,2063.1,0.4437294]
[1772629646643,5.10091768,2063.7,2062.8,0.001]
[1772629646945,5.10091768,2063.7,2062.9,0.44371644]
[1772629647247,6.30263583,2063.6,2062.8,0.001]
[1772629647811,6.30263583,2063.6,2061.9,11.63744218]
[1772629648041,6.30263583,2063.6,2061.9,9.36550501]
[1772629648242,6.30263583,2063.6,2062.0,5.63610216]
[1772629649237,6.30263583,2063.6,2062.0,6.8484667]
[1772629650020,6.30263583,2063.6,2062.0,5.63610216]
[1772629650519,6.30263583,2063.6,2062.0,6.84850873]
[1772629650720,1.823,2063.5,2062.0,6.84850873]
[1772629650938,1.823,2063.5,2062.1,5.63610216]
[1772629651256,1.21159251,2063.4,2062.3,5.63610216]
[1772629653077,1.21159251,2063.4,2062.3,6.07963382]
[1772629653370,1.823,2063.6,2062.5,5.63610216]
[1772629653670,1.822,2064.1,2062.6,5.63610216]
[1772629654240,5.07352654,2064.0,2062.6,5.63610216]
[1772629655243,5.06921262,2064.3,2062.7,1.21200368]
[1772629655449,6.89021262,2064.2,2062.8,5.63610216]
[1772629655669,5.06921262,2064.1,2062.8,5.63610216]
[1772629656844,5.06921262,2064.1,2062.6,1.21206125]
[1772629657250,5.06921262,2064.1,2062.6,6.84816341]
[1772629657451,1.21124031,2064.0,2062.6,6.84816341]
[1772629657646,3.03124031,2064.0,2062.6,6.84816341]
[1772629657978,0.002,2064.5,2062.6,1.21206125]
[1772629658176,0.002,2064.5,2063.2,5.63610216]
[1772629658177,1.21295049,2064.5,2063.2,5.63610216]
[1772629658405,0.002,2064.1,2063.2,5.63610216]
[1772629658681,1.21295049,2064.5,2062.8,5.63610216]
[1772629658853,1.21295421,2064.5,2063.6,5.63610216]
[1772629659053,1.21298755,2064.5,2063.8,5.63610216]
[1772629659270,1.21298755,2064.5,2063.9,5.63610216]
[1772629659458,0.002,2064.5,2063.9,5.63610216]
[1772629661452,0.002,2064.5,2063.9,6.84739112]
[1772629661781,0.002,2064.5,2063.9,6.84738684]
[1772629662392,1.21082966,2064.8,2064.2,5.63610216]
[1772629663287,1.21036068,2065.5,2064.3,0.43988456]
[1772629663477,3.02836068,2065.5,2064.4,6.8470703]
[1772629663909,1.817,2065.4,2064.4,6.8470703]
[1772629664189,1.817,2065.3,2064.4,5.63610216]
[1772629664561,6.2451807,2065.5,2064.4,5.63610216]
[1772629664562,7.70502212,2065.5,2064.4,5.63610216]
[1772629664874,1.817,2065.4,2064.4,6.84710566]
[1772629665177,1.21036068,2065.5,2064.4,5.63610216]
[1772629665178,1.817,2065.3,2064.4,5.63610216]
[1772629665476,1.817,2065.3,2064.4,6.84710544]
[1772629665665,1.817,2065.4,2064.4,6.84710544]
[1772629666268,1.817,2065.4,2064.4,5.63610216]
[1772629667559,1.21047789,2065.3,2064.4,5.63610216]
[1772629667775,1.816,2065.2,2064.4,5.63610216]
[1772629668693,1.21047789,2065.3,2064.4,6.84706158]
[1772629668991,1.21047789,2065.3,2064.4,5.63610216]
[1772629668992,1.816,2065.2,2064.4,5.63610216]
[1772629669372,3.02547789,2065.3,2064.4,5.63610216]
[1772629669596,3.02547789,2065.3,2064.4,6.84710173]
[1772629669794,3.02547789,2065.3,2064.4,5.63610216]
[1772629670010,3.02547789,2065.3,2064.4,5.63310216]
[1772629670520,3.02547789,2065.3,2064.2,1.21107838]
[1772629670521,1.20995063,2066.2,2064.7,5.31395555]
[1772629670668,1.814,2066.1,2064.9,5.31395555]
[1772629671097,7.11622338,2066.1,2064.9,5.31395555]
[1772629671294,5.30222338,2066.0,2064.9,5.31395555]
[1772629671671,0.002,2065.0,2064.6,5.31495555]
[1772629672477,0.002,2065.0,2064.6,6.52582664]
[1772629672807,0.002,2065.0,2064.6,5.31495555]
[1772629672974,1.813,2065.5,2064.6,6.52583297]
[1772629673179,1.21012633,2065.9,2064.6,6.52583297]
[1772629673416,1.21012633,2065.9,2064.8,5.31395555]
[1772629673704,1.21012633,2065.9,2065.0,5.31395555]
[1772629674167,3.02212633,2065.9,2065.0,5.31395555]
[1772629675073,1.811,2065.8,2065.0,5.31395555]
[1772629675793,1.811,2065.7,2065.0,6.52456463]
[1772629675992,1.811,2065.7,2065.0,5.31395555]
[1772629676296,1.811,2065.7,2065.0,6.52460371]
[1772629676496,1.811,2065.7,2065.0,6.52459892]
[1772629676693,10.14272872,2066.0,2065.0,6.52459892]
[1772629676899,1.81,2065.6,2065.0,5.31395555]
[1772629677698,10.14272872,2066.0,2065.0,6.52460539]
[1772629678107,1.809,2065.9,2065.0,6.52460539]
[1772629678294,1.809,2065.8,2065.0,6.52460539]
[1772629678493,1.809,2065.8,2065.0,6.52459637]
[1772629678722,7.11122338,2065.8,2064.7,5.31395555]
[1772629678878,5.30222338,2065.7,2064.7,6.52478065]
[1772629679276,5.30222338,2065.7,2064.7,6.52477848]
[1772629679783,3.01730209,2065.6,2064.7,6.52477848]
[1772629679984,1.807,2065.5,2064.7,6.52477848]
[1772629680508,4.84120836,2065.8,2064.7,6.52477848]
[1772629680509,1.21018491,2065.8,2064.9,5.31395555]
[1772629680682,1.21018491,2065.8,2065.1,5.31395555]
[1772629681006,1.21016692,2065.9,2065.1,5.31395555]
[1772629681217,1.806,2066.2,2065.3,5.31395555]
[1772629681524,7.10822338,2066.2,2065.0,5.31395555]
[1772629681812,7.10822338,2066.2,2065.1,5.75291215]
[1772629682017,1.21000919,2066.1,2065.1,6.52453665]
[1772629682234,3.01500919,2066.1,2065.1,6.52453665]
[1772629682527,1.805,2066.0,2065.1,5.31395555]
[1772629682766,5.30222338,2065.9,2064.8,5.31395555]
[1772629682934,5.30222338,2065.8,2064.8,5.31395555]
[1772629683337,1.804,2065.7,2064.8,6.52472476]
[1772629683637,1.804,2065.6,2064.8,6.52472476]
[1772629684028,1.803,2065.5,2064.8,6.52472476]
[1772629684228,1.803,2065.6,2064.8,6.52472476]
[1772629684428,1.803,2065.6,2064.9,5.75384472]
[1772629684628,1.803,2065.6,2064.9,5.31395555]
[1772629684865,1.803,2065.6,2064.6,6.52579332]
[1772629685159,1.803,2065.6,2064.7,0.44001871]
[1772629685339,1.803,2065.6,2064.6,6.52579332]
[1772629685657,1.803,2065.6,2064.7,0.440451]
[1772629685959,1.803,2065.6,2064.6,6.52584362]
[1772629686160,1.21036068,2065.5,2064.7,0.44036477]
[1772629686320,3.01236068,2065.5,2064.8,0.44036477]
[1772629686536,3.01236068,2065.5,2064.6,6.52584362]
[1772629686753,3.01236068,2065.5,2064.7,0.4409274]
[1772629686937,3.01236068,2065.5,2064.8,0.4409274]
[1772629687165,8.31458406,2065.5,2064.6,0.001]
[1772629687340,5.30222338,2065.4,2064.7,0.44185843]
[1772629687536,5.30222338,2065.4,2064.8,0.44185843]
[1772629687734,5.30222338,2065.4,2064.6,0.001]
[1772629687735,1.21036068,2065.5,2064.6,6.5258429]
[1772629687940,1.21036068,2065.5,2064.7,0.44894877]
[1772629688175,1.21047789,2065.3,2064.8,0.44185816]
[1772629688383,1.21047789,2065.3,2064.7,1.21791312]
[1772629688549,1.8,2065.2,2064.8,0.44202581]
[1772629688747,1.8,2065.2,2064.9,0.44202581]
[1772629688946,1.21030209,2065.6,2064.7,6.53186867]
[1772629689184,1.8,2065.2,2064.8,0.44197604]
[1772629689478,3.01030209,2065.6,2064.9,5.75593159]
[1772629689681,3.01030209,2065.6,2065.0,0.44197604]
[1772629689844,3.01030209,2065.6,2064.7,6.53185877]
[1772629690045,0.002,2065.7,2064.9,6.52466793]
[1772629690265,1.8,2065.6,2065.0,0.4420586]
[1772629690471,1.8,2065.5,2065.1,0.4420586]
[1772629690678,1.8,2065.5,2064.9,5.31395555]
[1772629690991,1.8,2065.5,2065.0,0.44225358]
[1772629691174,1.799,2065.4,2065.1,0.44225358]
[1772629691381,0.002,2065.7,2065.2,5.7563869]
[1772629691666,0.002,2065.7,2064.8,3.46563068]
[1772629691667,6.63768415,2066.7,2065.8,5.31395555]
[1772629691862,6.63768415,2066.7,2065.9,0.44243135]
[1772629692050,3.0086579,2066.7,2066.0,5.7563869]
[1772629692253,1.2096579,2066.7,2066.1,5.7563869]
[1772629692440,1.20965904,2066.7,2066.2,5.75528515]
[1772629692639,1.20965904,2066.7,2066.3,0.4413296]
[1772629692869,1.20965904,2066.7,2066.2,5.31395555]
[1772629693075,1.20965904,2066.7,2066.0,1.21002017]
[1772629693076,1.20965904,2066.7,2065.9,5.31395555]
[1772629693259,1.20965904,2066.7,2065.8,1.21016981]
[1772629693260,4.83863163,2067.1,2066.0,5.75530727]
[1772629693589,3.00848234,2067.0,2066.2,5.31395555]
[1772629693755,3.00848234,2067.0,2066.3,5.75530727]
[1772629693959,1.20948234,2067.0,2066.4,0.44135172]
[1772629694160,10.45983574,2067.5,2066.2,5.31395555]
[1772629694161,1.20924833,2067.4,2066.2,5.31395555]
[1772629694361,1.20924833,2067.4,2066.3,5.31395555]
[1772629694661,7.10022338,2067.3,2066.3,5.31395555]
[1772629694860,5.30222338,2067.2,2066.1,2.48919]
[1772629695052,5.30222338,2067.2,2066.0,5.31395555]
[1772629695377,1.798,2067.1,2066.0,6.52401391]
[1772629695575,1.798,2067.1,2066.0,5.31395555]
[1772629695776,7.10022338,2067.1,2066.0,6.52401751]
[1772629696381,1.20948234,2067.0,2066.0,6.52401751]
[1772629697179,6.51170572,2067.0,2065.6,9.01343605]
[1772629697364,6.51170572,2067.0,2065.6,9.01342883]
[1772629697878,1.797,2066.9,2065.6,9.01342883]
[1772629698079,7.09922338,2066.8,2065.7,5.31395555]
[1772629698269,3.0066579,2066.7,2065.8,7.12487705]
[1772629698656,1.2096579,2066.7,2065.8,7.12487705]
[1772629699187,3.0066579,2066.7,2065.8,7.12487705]
[1772629699380,1.2096579,2066.7,2065.8,7.12487705]
[1772629700577,1.21163982,2066.8,2065.8,7.12487705]
[1772629700780,3.00763982,2066.8,2065.8,7.1248697]
[1772629700971,1.21163982,2066.8,2065.8,7.1248697]
[1772629701172,0.002,2066.8,2065.8,7.1248697]
[1772629701372,1.20929539,2067.4,2066.1,5.91469214]
[1772629701581,4.83689884,2067.5,2066.3,5.91469214]
[1772629701582,1.20922996,2067.5,2066.3,5.91469214]
[1772629701885,1.20922996,2067.5,2066.4,5.91469214]
[1772629702091,0.69413427,2067.6,2066.4,5.91469214]
[1772629702288,1.20883903,2068.1,2066.7,5.8712342]
[1772629702666,6.80770745,2068.1,2066.7,5.8712342]
[1772629703287,1.782,2068.0,2066.7,5.8712342]
[1772629703464,1.783,2067.9,2066.7,5.8712342]
[1772629703660,6.80770745,2068.1,2066.7,5.8712342]
[1772629703862,7.38186842,2067.9,2066.7,5.8712342]
[1772629704090,1.783,2067.8,2066.7,5.8712342]
[1772629704291,1.20907288,2067.7,2066.8,7.08083358]
[1772629704493,1.20888258,2068.1,2066.8,7.08083358]
[1772629704790,2.99188258,2068.1,2066.9,5.8712342]
[1772629704992,5.59886842,2068.0,2066.9,5.8712342]
[1772629705215,5.59886842,2068.0,2066.7,1.209613]
[1772629705493,5.59886842,2067.8,2066.6,7.08094591]
[1772629705888,7.38286842,2067.7,2066.6,7.08094591]
[1772629706069,1.784,2067.7,2066.4,5.8712342]
[1772629706394,1.784,2067.7,2066.8,1.20959938]
[1772629706395,1.20913136,2067.6,2066.8,1.20959938]
[1772629706772,1.20913136,2067.6,2066.5,1.2097449]
[1772629706773,6.80799978,2067.6,2066.5,1.2097449]
[1772629706978,6.80799978,2067.6,2066.6,0.43737683]
[1772629707165,6.80799978,2067.6,2066.5,5.8712342]
[1772629707993,1.786,2067.5,2066.5,5.8712342]
[1772629708181,1.20913136,2067.6,2066.5,5.8712342]
[1772629708381,2.99513136,2067.6,2066.7,5.8712342]
[1772629709173,5.59886842,2067.5,2066.6,1.20971644]
[1772629709369,2.99513136,2067.6,2066.6,7.08095064]
[1772629709596,4.83619505,2067.8,2066.6,7.08095064]
[1772629709798,4.83619505,2067.8,2066.7,0.43734917]
[1772629710003,4.83619505,2067.8,2066.8,5.8712342]
[1772629710373,6.80799978,2067.6,2066.5,7.0809949]
[1772629710568,6.80799978,2067.6,2066.0,5.8712342]
[1772629710774,5.59886842,2067.5,2066.1,6.30870047]
[1772629710975,5.59886842,2067.5,2066.1,5.8712342]
[1772629711503,5.59886842,2067.5,2066.3,5.8712342]
[1772629711674,1.788,2067.4,2066.3,5.8712342]
[1772629711997,5.59886842,2067.5,2066.3,5.8712342]
[1772629712199,0.002,2067.4,2066.3,5.8712342]
[1772629712498,0.002,2067.4,2066.7,5.8712342]
[1772629713102,0.002,2067.4,2066.8,6.30817504]
[1772629713292,0.002,2067.4,2066.8,5.8712342]
[1772629713490,0.002,2067.4,2066.6,1.20971644]
[1772629714086,0.002,2067.4,2066.6,7.08095064]
[1772629715399,0.002,2067.4,2066.6,5.8712342]
[1772629715712,0.002,2067.4,2066.6,7.08094798]
[1772629715917,5.60086842,2067.4,2066.3,5.8712342]
[1772629716614,5.60086842,2067.4,2065.9,7.08136053]
[1772629716789,5.59886842,2067.2,2065.9,7.08136053]
[1772629716990,1.789,2067.1,2066.1,5.8712342]
[1772629717214,5.59886842,2067.2,2066.2,6.30897475]
[1772629717381,2.99830682,2067.3,2066.4,5.8712342]
[1772629717581,1.789,2067.3,2066.4,5.8712342]
[1772629717908,6.80809545,2067.5,2066.5,6.30929055]
[1772629718107,2.99922703,2067.5,2066.6,0.43805635]
[1772629718409,2.99922703,2067.5,2066.5,5.8712342]
[1772629718712,2.99893909,2068.0,2066.9,5.8712342]
[1772629718909,1.20893909,2068.0,2067.1,5.8712342]
[1772629719097,1.20893909,2068.0,2067.2,0.43840881]
[1772629719408,1.20893909,2068.0,2067.1,5.8712342]
[1772629719707,1.20888535,2068.1,2067.2,6.30971854]
[1772629719912,1.20888535,2068.1,2067.3,0.43848434]
[1772629720117,1.20888535,2068.1,2067.3,5.8712342]
[1772629720290,0.3241267,2069.2,2067.5,5.8712342]
[1772629720494,5.59886842,2069.0,2067.7,5.8712342]
[1772629720692,5.59886842,2069.0,2067.8,0.43842188]
[1772629721000,5.59886842,2068.8,2067.7,1.20904625]
[1772629721213,5.59886842,2068.8,2067.8,0.43863421]
[1772629721389,5.59886842,2068.8,2067.7,1.20904625]
[1772629721390,5.59886842,2068.8,2067.9,0.43863421]
[1772629721712,5.59886842,2068.6,2067.1,9.33546943]
[1772629721886,5.59886842,2068.4,2067.2,0.43923561]
[1772629722086,5.59886842,2068.4,2067.3,0.43923561]
[1772629722294,7.38986842,2068.4,2067.4,0.43923561]
[1772629723107,1.20872213,2068.3,2067.5,1.20918984]
[1772629723305,1.20872213,2068.3,2067.6,0.43923561]
[1772629723516,1.20872213,2068.3,2067.3,5.8712342]
[1772629723703,1.20872213,2068.3,2067.4,0.43922889]
[1772629723903,1.20872213,2068.3,2067.5,0.43922889]
[1772629724218,1.20872213,2068.3,2067.3,7.08050008]
[1772629724406,2.99972213,2068.3,2067.4,0.43913032]
[1772629724582,1.20872213,2068.3,2067.5,0.43913032]
[1772629724786,1.20872213,2068.3,2067.6,0.43910815]
[1772629724787,3.00072213,2068.3,2067.6,0.43910815]
[1772629725087,3.00072213,2068.3,2067.3,7.08050008]
[1772629725413,3.00072213,2068.3,2067.5,1.20918984]
[1772629725588,3.00072213,2068.3,2067.6,0.43903109]
[1772629725791,3.00072213,2068.3,2067.4,7.08044608]
[1772629726116,3.00072213,2068.3,2067.5,0.439029]
[1772629726292,0.002,2068.1,2067.6,0.439029]
[1772629726614,0.002,2068.1,2067.4,7.08044608]
[1772629726921,1.20869279,2068.4,2067.4,7.08044608]
[1772629726922,0.002,2068.3,2067.7,5.8712342]
[1772629727099,0.002,2068.3,2067.8,6.3101087]
[1772629727299,0.002,2068.3,2068.0,1.20889748]
[1772629727693,0.002,2068.3,2067.9,1.20891509]
[1772629727909,0.002,2068.3,2067.5,1.24320627]
[1772629728114,0.002,2068.3,2067.2,1.20936532]
[1772629728612,0.002,2068.3,2067.3,5.36694268]
[1772629729286,0.002,2068.3,2067.5,5.36694268]
[1772629731404,0.002,2068.3,2067.7,5.36694268]
[1772629731818,1.20833823,2069.0,2067.8,5.36694268]
[1772629732737,7.14384816,2069.0,2067.6,1.20913136]
[1772629733490,5.93550993,2068.9,2067.1,6.57634407]